bitfinex/quotes_ETHUSD_20250422
["timestamp","ask_amount","ask_price","bid_price","bid_amount"]
[1745298916655,6.35566289,1573.4,1573.3,0.92131444]
[1745298916953,6.35526028,1573.5,1573.3,0.92131444]
[1745298918350,6.35526028,1573.5,1573.3,0.77011444]
[1745298922299,12.71082684,1573.5,1573.3,0.77011444]
[1745298922462,14.58990952,1573.5,1573.3,0.77011444]
[1745298922809,8.23434296,1573.5,1573.3,0.77011444]
[1745298923109,8.23434296,1573.5,1573.3,0.13351444]
[1745298923110,6.35566289,1573.4,1573.3,0.13351444]
[1745298923478,6.35566289,1573.4,1573.1,0.7878]
[1745298923679,6.35566289,1573.4,1573.3,0.12787827]
[1745298923865,8.23434296,1573.5,1573.1,0.7878]
[1745298923866,8.23434296,1573.5,1573.1,7.20797886]
[1745298924065,12.43510052,1573.6,1573.3,0.12787827]
[1745298924305,12.43510052,1573.6,1573.3,0.8082]
[1745298924508,12.43510052,1573.6,1573.4,0.12787827]
[1745298925100,6.08,1573.6,1573.4,3.79834176]
[1745298925302,6.08,1573.6,1573.4,10.15396779]
[1745298925474,6.08,1573.6,1573.5,0.8082]
[1745298925882,6.08,1573.6,1573.5,0.93122958]
[1745298926203,12.4348551,1573.6,1573.5,0.12302958]
[1745298926406,18.79004641,1573.6,1573.3,0.8082]
[1745298926702,6.08,1573.6,1573.4,0.12302958]
[1745298926878,12.43500553,1573.6,1573.4,0.12302958]
[1745298927083,6.08,1573.6,1573.4,0.12302958]
[1745298927405,12.43488389,1573.6,1573.4,0.12302958]
[1745298927605,18.79014092,1573.6,1573.4,0.12302958]
[1745298927809,12.43488389,1573.6,1573.4,0.12302958]
[1745298928385,6.08,1573.6,1573.4,0.12302958]
[1745298928570,6.08,1573.6,1573.4,3.79349307]
[1745298929118,6.08,1573.6,1573.5,0.8082]
[1745298929576,6.08,1573.6,1573.5,0.93122958]
[1745298930582,6.35447006,1573.7,1573.5,0.93122958]
[1745298931614,18.78791198,1573.9,1573.6,3.67046349]
[1745298931915,6.35405015,1573.8,1573.7,0.11923017]
[1745298932120,6.3548551,1573.6,1573.5,0.8082]
[1745298932309,6.3548551,1573.6,1573.4,6.2252]
[1745298932621,6.35465711,1573.7,1573.4,6.2252]
[1745298932622,6.35445331,1573.7,1573.4,6.2252]
[1745298933118,6.35420519,1573.8,1573.4,6.2252]
[1745298933280,6.35458833,1573.7,1573.4,6.2252]
[1745298933486,6.35489382,1573.6,1573.4,6.2252]
[1745298933903,6.35489382,1573.6,1573.4,0.8082]
[1745298935724,6.35427095,1573.8,1573.4,4.47866349]
[1745298936027,6.35448239,1573.7,1573.4,4.47866349]
[1745298938736,12.43428503,1573.8,1573.4,4.47866349]
[1745298939040,7.59807534,1573.7,1573.4,4.47866349]
[1745298939197,12.43428503,1573.8,1573.5,0.8035]
[1745298939395,6.08,1573.8,1573.6,3.67046349]
[1745298940037,12.43405879,1573.8,1573.6,3.67046349]
[1745298940500,6.08,1573.8,1573.6,3.67046349]
[1745298940829,12.43406355,1573.8,1573.6,3.67046349]
[1745298941369,6.08,1573.8,1573.6,3.67046349]
[1745298941564,6.35245895,1574.2,1573.6,3.67046349]
[1745298941565,6.08,1574.2,1573.8,6.35404561]
[1745298941866,18.78544261,1574.2,1573.9,0.8035]
[1745298942072,6.35288635,1574.1,1573.9,0.8035]
[1745298943131,6.35324015,1574.0,1573.7,4.47396349]
[1745298943371,6.35368352,1573.9,1573.7,4.47396349]
[1745298943728,6.35368352,1573.9,1573.5,11.78903974]
[1745298943729,6.35417878,1573.8,1573.6,3.8035]
[1745298944542,6.35368352,1573.9,1573.6,3.8035]
[1745298945055,12.70764673,1573.9,1573.6,3.8035]
[1745298945659,12.70767239,1573.9,1573.6,3.8035]
[1745298945943,6.35434764,1573.8,1573.6,3.8035]
[1745298946148,6.35445129,1573.7,1573.6,3.8035]
[1745298949813,6.35434764,1573.8,1573.6,3.8035]
[1745298950176,12.70773569,1573.9,1573.6,3.8035]
[1745298950380,6.35404752,1573.8,1573.7,3.67046349]
[1745298951174,6.35381247,1573.9,1573.7,3.67046349]
[1745298951379,12.70779403,1573.9,1573.7,3.67046349]
[1745298951608,6.35404752,1573.8,1573.7,3.67046349]
[1745298953271,6.35445129,1573.7,1573.6,3.8035]
[1745298954772,6.35404752,1573.8,1573.6,3.8035]
[1745298954972,12.70845158,1573.8,1573.6,3.8035]
[1745298955372,6.35404752,1573.8,1573.6,3.8035]
[1745298955572,12.7084544,1573.8,1573.6,3.8035]
[1745298955799,6.35445129,1573.7,1573.6,3.8035]
[1745298955972,12.70839322,1573.8,1573.6,3.8035]
[1745298956172,6.35404752,1573.8,1573.6,3.8035]
[1745298956428,12.70843543,1573.8,1573.6,3.8035]
[1745298956630,6.35404752,1573.8,1573.6,3.8035]
[1745298956934,6.35335539,1574.0,1573.8,0.7692]
[1745298957127,12.70699143,1574.0,1573.8,0.7692]
[1745298957432,12.70688327,1574.0,1573.8,0.7692]
[1745298957895,6.35335539,1574.0,1573.8,0.7692]
[1745298958095,6.35305657,1574.1,1573.9,3.67046349]
[1745298958297,6.35324015,1574.0,1573.9,3.67046349]
[1745298959534,6.35364381,1573.9,1573.8,0.7692]
[1745298959911,6.35364381,1573.9,1573.7,4.43966349]
[1745298961127,12.70763272,1573.9,1573.7,4.43966349]
[1745298961338,6.35364381,1573.9,1573.7,4.43966349]
[1745298962004,6.35342265,1574.0,1573.7,4.43966349]
[1745298962207,6.3538444,1573.9,1573.7,4.43966349]
[1745298962402,6.35404752,1573.8,1573.6,3.0]
[1745298962606,6.3548551,1573.6,1573.5,9.87366349]
[1745298962809,12.70937303,1573.7,1573.5,9.87366349]
[1745298963120,6.3548551,1573.6,1573.5,6.2032]
[1745298963317,6.3548551,1573.6,1573.5,9.2032]
[1745298963534,6.3548551,1573.6,1573.5,8.434]
[1745298963807,6.35461128,1573.7,1573.5,8.434]
[1745298964132,12.70942592,1573.7,1573.5,8.434]
[1745298964339,6.35461128,1573.7,1573.5,8.434]
[1745298965242,6.3548551,1573.6,1573.5,8.434]
[1745298965405,6.35461128,1573.7,1573.5,8.434]
[1745298967634,6.35453417,1573.7,1573.5,8.434]
[1745298969834,6.35453417,1573.7,1573.5,5.434]
[1745298970138,7.1424551,1573.6,1573.5,5.434]
[1745298970346,6.3554401,1573.5,1573.3,3.0]
[1745298972042,6.35566289,1573.4,1573.3,3.0]
[1745298972341,12.71098789,1573.5,1573.3,3.0]
[1745298972647,6.3554401,1573.5,1573.3,3.0]
[1745298974348,12.71018523,1573.6,1573.3,3.06355393]
[1745298974737,6.3550379,1573.6,1573.4,3.67046349]
[1745298974938,6.35460989,1573.7,1573.5,0.7625]
[1745298975850,12.43421806,1573.8,1573.5,0.7625]
[1745298975851,12.43427592,1573.8,1573.5,3.7625]
[1745298976253,12.43427592,1573.8,1573.6,3.67046349]
[1745298977762,6.3534443,1574.0,1573.7,0.7625]
[1745298977968,6.3534443,1574.0,1573.8,3.67046349]
[1745298978336,12.70699879,1574.0,1573.8,3.67046349]
[1745298978537,6.3534443,1574.0,1573.8,3.67046349]
[1745298978888,6.35364381,1573.9,1573.8,3.67046349]
[1745298979230,6.35364381,1573.9,1573.7,4.43296349]
[1745298979460,6.35404752,1573.8,1573.6,9.08246349]
[1745298979766,6.35364381,1573.9,1573.6,9.84496349]
[1745298980066,12.70696743,1574.0,1573.7,0.06353707]
[1745298980368,6.35377983,1573.9,1573.7,0.06353707]
[1745298980741,6.35377983,1573.9,1573.6,9.84496349]
[1745298980945,6.35339796,1574.0,1573.6,16.19970476]
[1745298981139,12.70701729,1574.0,1573.6,16.19970476]
[1745298981344,6.35307087,1574.1,1573.9,0.7625]
[1745298982262,6.35324015,1574.0,1573.9,0.7625]
[1745298983551,6.35324015,1574.0,1573.8,3.67046349]
[1745298984141,0.0992,1573.9,1573.8,3.67046349]
[1745298984750,6.45284381,1573.9,1573.8,3.67046349]
[1745298985340,6.35404752,1573.8,1573.7,3.0]
[1745298985949,6.35404752,1573.8,1573.6,9.90996349]
[1745298987067,6.45284381,1573.9,1573.6,9.97350364]
[1745298987263,6.45284381,1573.9,1573.6,9.90996349]
[1745298987442,0.0992,1573.9,1573.8,3.67046349]
[1745298987642,0.0992,1573.9,1573.8,4.49796349]
[1745298989873,6.45284381,1573.9,1573.8,4.49796349]
[1745298990078,12.80683133,1573.9,1573.7,3.0]
[1745298990950,6.35404752,1573.8,1573.7,3.0]
[1745298991272,6.35445129,1573.7,1573.6,9.90996349]
[1745298991976,6.35404752,1573.8,1573.6,9.90996349]
[1745298992178,6.35404752,1573.8,1573.6,12.08246349]
[1745298992348,12.70838908,1573.8,1573.6,9.08246349]
[1745298992549,6.35404752,1573.8,1573.6,9.08246349]
[1745298993249,6.45286715,1573.9,1573.7,0.8275]
[1745298993747,0.0992,1573.9,1573.7,3.8275]
[1745298993946,0.0992,1573.9,1573.8,3.67046349]
[1745298994349,0.0992,1573.9,1573.8,3.73399696]
[1745298994548,0.0992,1573.9,1573.8,3.67046349]
[1745298994748,0.0992,1573.9,1573.8,4.19693627]
[1745298994983,0.0992,1573.9,1573.8,6.67046349]
[1745298995588,0.0992,1573.9,1573.8,13.02451101]
[1745298995957,0.0992,1573.9,1573.8,6.67046349]
[1745298998691,0.0992,1573.9,1573.8,13.02451101]
[1745298998852,0.0992,1573.9,1573.8,14.86828379]
[1745298999049,6.35142755,1574.5,1574.1,6.35263632]
[1745298999261,12.70212292,1574.6,1574.3,4.43776349]
[1745298999465,6.35127979,1574.5,1574.3,4.43776349]
[1745298999665,7.10608948,1574.7,1574.4,3.0]
[1745298999865,7.10608948,1574.7,1574.5,3.67046349]
[1745298999866,6.35058948,1574.7,1574.5,3.67046349]
[1745299000283,6.35058948,1574.7,1574.5,4.43776349]
[1745299001661,6.35017294,1574.8,1574.5,4.43776349]
[1745299001866,6.34978663,1574.9,1574.6,5.45450015]
[1745299002067,6.34978663,1574.9,1574.6,5.391]
[1745299002262,12.69968731,1574.9,1574.6,5.391]
[1745299002584,6.35013977,1574.8,1574.6,5.391]
[1745299002786,6.35041595,1574.7,1574.6,5.391]
[1745299004864,6.35013977,1574.8,1574.6,5.391]
[1745299005089,6.35041595,1574.7,1574.6,5.391]
[1745299006157,6.35013977,1574.8,1574.6,5.391]
[1745299006364,6.35041595,1574.7,1574.6,5.391]
[1745299006575,7.10591595,1574.7,1574.6,5.391]
[1745299010093,7.10591595,1574.7,1574.1,9.82776349]
[1745299010094,6.35219716,1574.3,1574.1,9.82776349]
[1745299010391,6.35243298,1574.2,1574.1,9.06046349]
[1745299010592,6.35243298,1574.2,1574.1,5.39]
[1745299020201,7.17033298,1574.2,1574.1,5.39]
[1745299024604,6.35364381,1573.9,1573.8,5.391]
[1745299024993,6.35324015,1574.0,1573.8,5.391]
[1745299025197,6.3533909,1574.0,1573.8,5.391]
[1745299027309,6.3533909,1574.0,1573.8,6.22603234]
[1745299027497,6.35301468,1574.1,1573.8,6.22603234]
[1745299027699,12.43263538,1574.2,1573.9,3.67046349]
[1745299027899,12.43263538,1574.2,1574.0,0.7715]
[1745299028306,6.35224651,1574.3,1574.0,0.7715]
[1745299028494,6.35181163,1574.4,1574.1,3.67046349]
[1745299028693,6.35181163,1574.4,1574.2,0.7705]
[1745299028899,6.35202947,1574.3,1574.0,0.7705]
[1745299029100,6.35261747,1574.2,1574.0,0.7705]
[1745299029302,6.35202947,1574.3,1574.0,0.7705]
[1745299030217,6.3525641,1574.2,1574.0,0.7705]
[1745299032415,6.35283654,1574.1,1574.0,0.7705]
[1745299032614,6.35324015,1574.0,1573.9,3.0]
[1745299033619,6.35283654,1574.1,1573.9,3.0]
[1745299033781,6.35324015,1574.0,1573.9,3.0]
[1745299034912,6.35283654,1574.1,1573.9,3.0]
[1745299035118,6.35324015,1574.0,1573.9,3.0]
[1745299035813,6.35255904,1574.2,1573.9,3.0]
[1745299036598,12.70534455,1574.2,1573.9,3.0]
[1745299036788,6.35255904,1574.2,1573.9,3.0]
[1745299036988,12.70528612,1574.2,1573.9,3.0]
[1745299038725,6.35284797,1574.1,1573.9,3.0]
[1745299039606,6.35255904,1574.2,1573.9,3.0]
[1745299039800,6.35255904,1574.2,1574.0,0.06352544]
[1745299040005,6.8305,1574.4,1574.0,0.7705]
[1745299040226,6.35233224,1574.3,1574.0,0.7705]
[1745299040408,6.35260769,1574.2,1574.0,0.7705]
[1745299040797,12.43188101,1574.4,1574.0,10.85758861]
[1745299041001,12.43188101,1574.4,1574.0,10.79406321]
[1745299041228,6.08,1574.4,1574.1,6.35268692]
[1745299041429,6.35103963,1574.6,1574.2,12.89547943]
[1745299041724,6.35126954,1574.5,1574.2,12.83196349]
[1745299041922,6.35103963,1574.6,1574.2,25.53659671]
[1745299042226,6.35103963,1574.6,1574.2,19.18419393]
[1745299042801,12.70224141,1574.6,1574.2,19.18419393]
[1745299043019,12.70220498,1574.6,1574.2,19.18419393]
[1745299043221,0.7505,1574.7,1574.2,12.83196349]
[1745299043421,6.35159682,1574.5,1574.2,12.83196349]
[1745299043811,6.35176522,1574.4,1574.2,12.83196349]
[1745299044323,6.35135537,1574.5,1574.2,12.83196349]
[1745299045536,6.35100477,1574.6,1574.2,19.65576225]
[1745299045898,6.35100477,1574.6,1574.3,0.8183]
[1745299046109,6.3512591,1574.5,1574.3,0.8183]
[1745299047499,6.35100477,1574.6,1574.3,0.8183]
[1745299047827,6.35058985,1574.7,1574.4,3.73397218]
[1745299048211,6.35058985,1574.7,1574.5,0.8183]
[1745299049339,6.35099574,1574.6,1574.4,3.0]
[1745299049545,6.35122261,1574.5,1574.4,3.0]
[1745299049944,6.35099574,1574.6,1574.4,3.0]
[1745299050255,6.35122261,1574.5,1574.4,3.0]
[1745299051670,6.35099574,1574.6,1574.4,3.0]
[1745299052953,6.35019454,1574.8,1574.5,4.48876349]
[1745299053870,6.35060126,1574.7,1574.5,4.48876349]
[1745299054869,6.35060126,1574.7,1574.4,3.7753]
[1745299055168,6.3509857,1574.6,1574.4,3.7753]
[1745299055523,12.70220152,1574.6,1574.4,3.7753]
[1745299055865,12.70209866,1574.6,1574.4,3.7753]
[1745299056067,6.3509857,1574.6,1574.4,3.7753]
[1745299057786,6.35122261,1574.5,1574.4,3.0]
[1745299058457,6.35162601,1574.4,1574.3,3.0]
[1745299060080,6.35122261,1574.5,1574.3,3.0]
[1745299060471,6.35162601,1574.4,1574.3,3.0]
[1745299060886,6.35122261,1574.5,1574.3,3.0]
[1745299061379,6.35122261,1574.5,1574.3,3.06351331]
[1745299061866,6.35122261,1574.5,1574.3,3.0]
[1745299062073,6.35122261,1574.5,1574.3,3.06351333]
[1745299062389,12.70217962,1574.6,1574.4,3.67046349]
[1745299062547,12.7020869,1574.6,1574.4,3.67046349]
[1745299063873,6.35122261,1574.5,1574.4,3.67046349]
[1745299064575,6.35162601,1574.4,1574.3,3.0]
[1745299066177,6.35162601,1574.4,1574.2,10.30829813]
[1745299066683,6.35202947,1574.3,1574.2,12.53299813]
[1745299066862,6.35202947,1574.3,1574.2,9.53299813]
[1745299067182,6.35202947,1574.3,1574.2,9.06146349]
[1745299067390,6.35202947,1574.3,1574.2,5.391]
[1745299069391,6.30202947,1574.3,1574.2,5.391]
[1745299076767,6.35351777,1574.0,1573.9,5.395]
[1745299077193,6.35351777,1574.0,1573.9,8.395]
[1745299077586,6.35351777,1574.0,1573.9,5.395]
[1745299078011,6.35303372,1574.1,1573.9,5.395]
[1745299078213,12.70623491,1574.1,1573.9,5.395]
[1745299078398,6.35324015,1574.0,1573.9,5.395]
[1745299080786,7.17594015,1574.0,1573.9,5.395]
[1745299080982,6.35385177,1573.9,1573.7,3.0]
[1745299081190,6.35404752,1573.8,1573.7,3.0]
[1745299081873,6.35404752,1573.8,1573.6,9.06646349]
[1745299082205,6.35385177,1573.9,1573.6,9.5379266]
[1745299083105,13.25537434,1574.2,1573.8,3.67046349]
[1745299083614,6.35287388,1574.1,1573.8,3.67046349]
[1745299083815,6.35336529,1574.0,1573.8,3.67046349]
[1745299084275,12.7069224,1574.0,1573.8,3.67046349]
[1745299084480,6.35336529,1574.0,1573.8,3.67046349]
[1745299085510,6.35326987,1574.0,1573.8,3.67046349]
[1745299085698,6.35300093,1574.1,1573.8,3.67046349]
[1745299086706,6.35288637,1574.1,1573.8,3.73399546]
[1745299088036,6.35288637,1574.1,1573.8,3.67046349]
[1745299089036,6.35326025,1574.0,1573.8,3.67046349]
[1745299089609,6.35288637,1574.1,1573.8,3.67046349]
[1745299089913,6.35288637,1574.1,1573.8,3.73399581]
[1745299090548,13.52798996,1574.2,1573.9,3.0]
[1745299090714,6.35257802,1574.2,1573.9,3.7831]
[1745299091112,6.35257802,1574.2,1573.9,3.84662992]
[1745299091323,6.35257802,1574.2,1574.0,5.391]
[1745299091530,6.35283654,1574.1,1574.0,5.391]
[1745299092819,7.16983654,1574.1,1574.0,5.391]
[1745299095437,6.35367293,1573.9,1573.7,8.391]
[1745299096150,6.35325997,1574.0,1573.7,8.45453825]
[1745299096938,6.3536984,1573.9,1573.7,8.391]
[1745299097408,6.35325997,1574.0,1573.7,8.391]
[1745299097728,6.35325997,1574.0,1573.8,3.67046349]
[1745299098836,6.35299132,1574.1,1573.8,3.67046349]
[1745299099066,6.35299132,1574.1,1573.9,0.7831]
[1745299099336,6.35266059,1574.2,1573.9,0.84663229]
[1745299099508,6.35266059,1574.2,1573.9,0.7831]
[1745299100141,6.35266059,1574.2,1573.9,3.84662948]
[1745299101106,6.35300724,1574.1,1573.9,3.7831]
[1745299101308,6.35300724,1574.1,1573.9,3.8963943]
[1745299101737,6.35266059,1574.2,1573.9,3.95992383]
[1745299102045,6.35266059,1574.2,1573.9,3.8963943]
[1745299102209,6.35266059,1574.2,1573.9,3.95992237]
[1745299102413,6.35266059,1574.2,1573.9,3.8963943]
[1745299102934,12.70543462,1574.2,1573.9,3.8963943]
[1745299103153,6.35266059,1574.2,1574.0,3.67046349]
[1745299103461,12.43188154,1574.4,1574.0,10.13695793]
[1745299103623,6.35188154,1574.4,1574.0,10.20048235]
[1745299103818,6.35206091,1574.3,1574.0,10.68653395]
[1745299104023,6.35206091,1574.3,1574.1,5.391]
[1745299104619,6.35188154,1574.4,1574.1,5.391]
[1745299104934,6.35204845,1574.3,1574.1,5.391]
[1745299106259,12.70442685,1574.3,1574.1,5.391]
[1745299106659,12.70382577,1574.4,1574.1,5.391]
[1745299106961,6.35204114,1574.3,1574.1,5.391]
[1745299107331,6.35204172,1574.3,1574.1,5.391]
[1745299109163,12.70445665,1574.3,1574.1,5.391]
[1745299109470,6.35243298,1574.2,1574.1,5.391]
[1745299110563,7.10633298,1574.2,1574.1,5.391]
[1745299110740,6.35204172,1574.3,1574.1,5.391]
[1745299110940,12.70438408,1574.3,1574.1,5.391]
[1745299111342,6.35243298,1574.2,1574.1,5.391]
[1745299112462,6.35204172,1574.3,1574.1,5.391]
[1745299114088,6.35243298,1574.2,1574.1,5.391]
[1745299118340,6.35204172,1574.3,1574.1,5.391]
[1745299118658,12.70436999,1574.3,1574.1,5.391]
[1745299118858,6.35204172,1574.3,1574.1,5.391]
[1745299119076,7.10568676,1574.4,1574.1,5.391]
[1745299119264,6.35108384,1574.6,1574.3,3.0]
[1745299119466,13.49637463,1574.7,1574.4,3.67046349]
[1745299119688,6.35084668,1574.6,1574.4,4.47576349]
[1745299120177,6.35084668,1574.6,1574.4,4.9539177]
[1745299121069,12.70129837,1574.7,1574.4,4.9539177]
[1745299121672,6.35058062,1574.7,1574.4,4.9539177]
[1745299122558,7.14536266,1574.8,1574.4,5.01742785]
[1745299122763,7.14536266,1574.8,1574.4,11.36892488]
[1745299122971,6.34985266,1574.9,1574.5,11.74104183]
[1745299123275,12.69985507,1574.9,1574.5,11.74104183]
[1745299123469,6.35004476,1574.8,1574.5,11.74104183]
[1745299123781,6.35004476,1574.8,1574.5,5.39]
[1745299124146,12.70035135,1574.8,1574.5,5.39]
[1745299124346,6.3504655,1574.7,1574.5,5.39]
[1745299124847,7.14514476,1574.8,1574.5,5.39]
[1745299126478,6.35004476,1574.8,1574.5,5.39]
[1745299127159,6.35053598,1574.7,1574.5,5.39]
[1745299127360,6.35004476,1574.8,1574.5,5.39]
[1745299128788,12.70041368,1574.8,1574.5,5.39]
[1745299129154,6.35004476,1574.8,1574.5,5.39]
[1745299129566,12.7003428,1574.8,1574.5,5.39]
[1745299129765,6.35004476,1574.8,1574.5,5.39]
[1745299130383,6.34934124,1575.0,1574.6,7.47576349]
[1745299130565,7.14397327,1575.1,1574.8,3.67046349]
[1745299130969,6.35041595,1574.7,1574.6,3.0]
[1745299131270,6.35081925,1574.6,1574.5,8.39]
[1745299135209,6.35041595,1574.7,1574.5,8.39]
[1745299135365,12.70113805,1574.7,1574.5,8.39]
[1745299135564,6.35081925,1574.6,1574.5,8.39]
[1745299139470,6.35081925,1574.6,1574.5,5.39]
[1745299141615,7.17611925,1574.6,1574.5,5.39]
[1745299144516,6.35122261,1574.5,1574.2,5.389]
[1745299144706,6.35122261,1574.5,1574.3,3.0]
[1745299144707,6.35174518,1574.4,1574.3,3.0]
[1745299145310,12.70272437,1574.5,1574.3,3.0]
[1745299145487,6.35162601,1574.4,1574.3,3.0]
[1745299146127,6.35122261,1574.5,1574.3,3.0]
[1745299146423,6.35162601,1574.4,1574.3,3.0]
[1745299147320,12.70273456,1574.5,1574.3,3.0]
[1745299147509,6.35162601,1574.4,1574.3,3.0]
[1745299148084,6.35162601,1574.4,1574.2,5.389]
[1745299148887,6.35202947,1574.3,1574.2,5.389]
[1745299149821,6.35283654,1574.1,1574.0,0.1132943]
[1745299156644,6.35262758,1574.2,1574.0,0.1132943]
[1745299156830,6.35262758,1574.2,1574.0,0.9429943]
[1745299157728,12.70533685,1574.2,1574.0,0.9429943]
[1745299158436,6.35283654,1574.1,1574.0,0.9429943]
[1745299158738,12.70537906,1574.2,1574.0,0.9429943]
[1745299159205,12.70540053,1574.2,1574.0,0.9429943]
[1745299159401,6.35262758,1574.2,1574.0,0.9429943]
[1745299159604,6.35262758,1574.2,1574.0,3.9429943]
[1745299160006,12.70538027,1574.2,1574.0,3.9429943]
[1745299160409,6.35262758,1574.2,1574.0,3.9429943]
[1745299161233,6.35283654,1574.1,1574.0,0.1132943]
[1745299165648,6.35262758,1574.2,1574.0,9.17275779]
[1745299165808,6.35262758,1574.2,1574.0,9.23628307]
[1745299166009,6.35177849,1574.4,1574.2,0.7521]
[1745299166318,6.35202947,1574.3,1574.2,4.42256349]
[1745299166673,6.35202947,1574.3,1574.2,7.42256349]
[1745299166938,6.35177849,1574.4,1574.2,7.42256349]
[1745299168237,12.70370088,1574.4,1574.2,7.42256349]
[1745299168441,6.35202947,1574.3,1574.2,7.42256349]
[1745299168620,6.35177849,1574.4,1574.2,7.42256349]
[1745299169124,6.35177849,1574.4,1574.2,4.42256349]
[1745299169316,6.35138509,1574.5,1574.2,4.48608069]
[1745299169737,6.35066281,1574.7,1574.4,4.42256349]
[1745299170038,6.35025717,1574.8,1574.5,3.0]
[1745299170240,6.35025717,1574.8,1574.6,3.67046349]
[1745299170841,6.35025717,1574.8,1574.6,4.42256349]
[1745299171358,6.34980433,1574.9,1574.6,10.77335753]
[1745299171667,6.34980433,1574.9,1574.6,4.42256349]
[1745299171848,6.3501507,1574.8,1574.6,4.42256349]
[1745299172718,6.34980433,1574.9,1574.6,4.42256349]
[1745299173044,12.69972999,1574.9,1574.6,4.42256349]
[1745299173221,12.6997078,1574.9,1574.6,4.42256349]
[1745299173554,6.34980433,1574.9,1574.6,4.42256349]
[1745299174454,6.34980433,1574.9,1574.7,3.0]
[1745299174621,12.69971635,1574.9,1574.7,3.0]
[1745299175253,6.34980433,1574.9,1574.7,3.0]
[1745299176817,12.6997081,1574.9,1574.7,3.0]
[1745299177023,6.34980433,1574.9,1574.7,3.0]
[1745299177348,12.69969664,1574.9,1574.7,3.0]
[1745299177666,6.3500127,1574.8,1574.7,3.0]
[1745299177970,6.34980433,1574.9,1574.7,3.0]
[1745299178266,6.34942339,1575.0,1574.7,3.0]
[1745299178444,6.34854345,1575.2,1574.9,3.0]
[1745299178954,6.34854345,1575.2,1575.0,3.67046349]
[1745299179149,6.34880325,1575.1,1575.0,3.0]
[1745299184740,6.34953554,1575.0,1574.8,9.88826349]
[1745299184936,6.34953554,1575.0,1574.9,3.0]
[1745299185670,6.34953554,1575.0,1574.9,3.48043923]
[1745299188773,6.34953554,1575.0,1574.9,0.48043923]
[1745299188971,6.34953554,1575.0,1574.8,9.9517567]
[1745299190449,6.34953554,1575.0,1574.9,3.0]
[1745299191283,12.69808469,1575.1,1574.9,3.0]
[1745299191779,6.34920634,1575.0,1574.9,3.0]
[1745299192472,0.8314,1575.3,1574.9,3.0]
[1745299192685,6.34817298,1575.3,1575.0,4.47176349]
[1745299192847,6.34854887,1575.2,1575.0,4.47176349]
[1745299193178,6.34817298,1575.3,1575.0,4.47176349]
[1745299193679,12.69718288,1575.2,1575.0,4.47176349]
[1745299194085,6.34841615,1575.2,1575.0,4.47176349]
[1745299195302,6.34880325,1575.1,1574.9,3.47674085]
[1745299195598,6.34920634,1575.0,1574.9,3.47674085]
[1745299195963,12.69789725,1575.1,1574.9,3.47674085]
[1745299196292,6.34920634,1575.0,1574.9,3.47674085]
[1745299197386,6.34880325,1575.1,1574.9,3.47674085]
[1745299198448,7.12434871,1575.2,1574.9,4.00321363]
[1745299198651,13.47310521,1575.2,1574.9,3.47674085]
[1745299199270,7.12434871,1575.2,1574.9,3.47674085]
[1745299200371,6.34864871,1575.2,1574.9,3.47674085]
[1745299201488,7.12386174,1575.3,1575.0,3.67046349]
[1745299201995,6.44775199,1575.4,1575.0,4.49406349]
[1745299201996,7.22345199,1575.4,1575.0,4.49406349]
[1745299202560,0.8757,1575.4,1575.0,10.84316008]
[1745299202763,6.44780848,1575.4,1575.1,3.0]
[1745299203295,0.1,1575.4,1575.1,3.0]
[1745299203785,0.1,1575.4,1575.2,5.385]
[1745299203959,6.44770566,1575.4,1575.2,5.385]
[1745299204795,7.1236972,1575.3,1575.2,5.385]
[1745299206264,6.34916612,1575.1,1574.9,8.86174085]
[1745299206464,6.34920634,1575.0,1574.9,8.86174085]
[1745299206687,7.12486612,1575.1,1574.9,5.86174085]
[1745299207105,7.12485421,1575.1,1574.9,5.86174085]
[1745299207715,6.34920634,1575.0,1574.7,0.8236]
[1745299208003,6.35021256,1574.8,1574.7,3.0]
[1745299208768,6.35041595,1574.7,1574.6,5.385]
[1745299209174,7.12611595,1574.7,1574.6,5.385]
[1745299209719,6.35114151,1574.6,1574.4,20.932]
[1745299210304,12.70234206,1574.6,1574.4,20.932]
[1745299210506,6.35114151,1574.6,1574.4,21.41732096]
[1745299210824,6.35122261,1574.5,1574.4,21.41732096]
[1745299211884,6.35122261,1574.5,1574.4,0.48532096]
[1745299212084,6.35122261,1574.5,1574.3,5.384]
[1745299213117,12.70278669,1574.5,1574.3,5.384]
[1745299213478,6.35122261,1574.5,1574.3,5.384]
[1745299215076,6.35122261,1574.5,1574.3,5.85283327]
[1745299215907,12.70275711,1574.5,1574.3,5.85283327]
[1745299216406,6.35122261,1574.5,1574.3,5.85283327]
[1745299216771,12.70222571,1574.6,1574.3,5.85283327]
[1745299217285,6.35106039,1574.6,1574.3,5.85283327]
[1745299217874,7.12630643,1574.7,1574.3,5.85283327]
[1745299218610,6.35060643,1574.7,1574.4,4.49276349]
[1745299221474,7.12844346,1574.8,1574.4,4.55627293]
[1745299222074,7.12844346,1574.8,1574.4,4.49276349]
[1745299222385,6.35043484,1574.7,1574.4,4.55627283]
[1745299222599,13.47881173,1574.8,1574.4,4.55627283]
[1745299222802,6.35067003,1574.7,1574.4,4.49276349]
[1745299223092,12.70144897,1574.7,1574.4,4.49276349]
[1745299224014,6.35067003,1574.7,1574.4,4.49276349]
[1745299224515,6.35067003,1574.7,1574.4,4.55627294]
[1745299225017,12.70142646,1574.7,1574.4,4.49276349]
[1745299225919,6.35067003,1574.7,1574.4,4.49276349]
[1745299226211,12.70143576,1574.7,1574.4,4.49276349]
[1745299227911,6.35097817,1574.6,1574.4,4.49276349]
[1745299229117,12.70211558,1574.6,1574.4,4.49276349]
[1745299229414,6.35097817,1574.6,1574.4,4.49276349]
[1745299229787,6.35062684,1574.7,1574.4,4.49276349]
[1745299229992,12.70142089,1574.7,1574.4,4.49276349]
[1745299230194,6.35062684,1574.7,1574.4,4.49276349]
[1745299230417,12.70136915,1574.7,1574.4,4.49276349]
[1745299231507,12.70136915,1574.7,1574.5,0.29221291]
[1745299233287,6.35062684,1574.7,1574.5,0.29221291]
[1745299233489,6.35014813,1574.8,1574.5,3.35572239]
[1745299233689,7.12896988,1574.9,1574.6,3.67046349]
[1745299234000,7.12896988,1574.9,1574.7,0.27585237]
[1745299234199,6.3500127,1574.8,1574.7,0.27585237]
[1745299234391,6.3500127,1574.8,1574.6,3.67046349]
[1745299234593,6.3500127,1574.8,1574.7,0.27585237]